Department Family,Entity,Date,Expense Type,Expense Area,Supplier,Transaction No,Amount,Description,Post Code
Department of Health,NHS Business Services Authority,09/07/2021,Civil Service Pension,Statutory Payments,CABINET OFFICE CIVIL SERVICE PENSIONS,0080122792,"45,497.46",CONTRIBUTIONS JUNE 21,RG24 9NW
Department of Health,NHS Business Services Authority,30/07/2021,Civil Service Pension,Statutory Payments,CABINET OFFICE CIVIL SERVICE PENSIONS,0080123579,"52,970.08",CONTRIBUTIONS JULY 2021,RG24 9NW
Department of Health,NHS Business Services Authority,02/07/2021,PC Purchases,Citizen Services,COMPUTACENTER (UK) LTD,0080122857,"43,930.80",Product:  Dell P2219H LED monitor Full H,AL10 9TW
Department of Health,NHS Business Services Authority,16/07/2021,IT Hardware Purchases,Technology,COMPUTACENTER (UK) LTD,0080123235,"55,554.00",Product: Apple MacBook laptop - Apple ,AL10 9TW
Department of Health,NHS Business Services Authority,02/07/2021,Soft FM Contract,Finance & Commercial,COMPASS SERVICES UK & IRELAND LTD,0080122813,"103,707.29",Combined  Soft FM Contract extension  ,B45 9PZ
Department of Health,NHS Business Services Authority,02/07/2021,Minor Works,Finance & Commercial,COMPASS SERVICES UK & IRELAND LTD,0080122816,"24,211.30",TO.CE-  Additional cleaning services ,B45 9PZ
Department of Health,NHS Business Services Authority,16/07/2021,Soft FM Contract,Finance & Commercial,COMPASS SERVICES UK & IRELAND LTD,0080123278,"56,130.34",Combined  Soft FM Contract extension  ,B45 9PZ
Department of Health,NHS Business Services Authority,02/07/2021,Software,NHS Workforce Services,IBM UK LTD,0080122858,679.65,IBM ESR DCT project,PO6 3AF
Department of Health,NHS Business Services Authority,02/07/2021,Software,NHS Workforce Services,IBM UK LTD,0080122858,"130,914.95",IBM ESR DCT project,PO6 3AF
Department of Health,NHS Business Services Authority,06/07/2021,Software,NHS Workforce Services,IBM UK LTD,0080122859,"60,566.40",IBM ESR DCT project,PO6 3AF
Department of Health,NHS Business Services Authority,06/07/2021,Software,NHS Workforce Services,IBM UK LTD,0080122864,"53,476.13",IBM ESR DCT project,PO6 3AF
Department of Health,NHS Business Services Authority,06/07/2021,Software,NHS Workforce Services,IBM UK LTD,0080122867,"30,888.02",IBM ESR DCT project,PO6 3AF
Department of Health,NHS Business Services Authority,06/07/2021,Software,NHS Workforce Services,IBM UK LTD,0080122868,"39,280.84",IBM ESR DCT project,PO6 3AF
Department of Health,NHS Business Services Authority,06/07/2021,Software,NHS Workforce Services,IBM UK LTD,0080122869,"39,856.17",IBM ESR DCT project,PO6 3AF
Department of Health,NHS Business Services Authority,06/07/2021,Software,NHS Workforce Services,IBM UK LTD,0080122870,"141,273.45",IBM ESR DCT project,PO6 3AF
Department of Health,NHS Business Services Authority,06/07/2021,Software,NHS Workforce Services,IBM UK LTD,0080122871,"79,748.11",IBM ESR DCT project,PO6 3AF
Department of Health,NHS Business Services Authority,06/07/2021,Software,NHS Workforce Services,IBM UK LTD,0080122873,"292,093.95",IBM ESR DCT project,PO6 3AF
Department of Health,NHS Business Services Authority,06/07/2021,IBM - Baseline,NHS Workforce Services,IBM UK LTD,0080122939,"2,063,240.91",IBM ESR Service Charges FY21-25,PO6 3AF
Department of Health,NHS Business Services Authority,06/07/2021,Software,NHS Workforce Services,IBM UK LTD,0080122940,"437,698.47",IBM ESR DCT project,PO6 3AF
Department of Health,NHS Business Services Authority,23/07/2021,Minor Works,Finance & Commercial,INTEGRATED HEALTH PROJECTS,0080123529,"28,360.13",MISC,HP2 7TR
Department of Health,NHS Business Services Authority,23/07/2021,Minor Works,Finance & Commercial,INTEGRATED HEALTH PROJECTS,0080123529,"1,168.02",TO.CE 42.9 � Asbestos Management ,HP2 7TR
Department of Health,NHS Business Services Authority,23/07/2021,Hard FM Reactive,Finance & Commercial,INTEGRATED HEALTH PROJECTS,0080123529,323.05,TO.CE-59.6 Rainwater Pipes - Additional ,HP2 7TR
Department of Health,NHS Business Services Authority,23/07/2021,Minor Works,Finance & Commercial,INTEGRATED HEALTH PROJECTS,0080123529,"1,149.53",TO.CE-47.6 - Reception Emergency ,HP2 7TR
Department of Health,NHS Business Services Authority,23/07/2021,Hard FM Reactive,Finance & Commercial,INTEGRATED HEALTH PROJECTS,0080123529,"1,649.36",MISC,HP2 7TR
Department of Health,NHS Business Services Authority,23/07/2021,Hard FM Reactive,Finance & Commercial,INTEGRATED HEALTH PROJECTS,0080123529,"1,179.54",TO.CE-47.2 - Emergency Lighting ,HP2 7TR
Department of Health,NHS Business Services Authority,23/07/2021,Hard FM Reactive,Finance & Commercial,INTEGRATED HEALTH PROJECTS,0080123529,126.52,MISC,HP2 7TR
Department of Health,NHS Business Services Authority,23/07/2021,Hard FM Reactive,Finance & Commercial,INTEGRATED HEALTH PROJECTS,0080123529,196.18,MISC,HP2 7TR
Department of Health,NHS Business Services Authority,23/07/2021,Minor Works,Finance & Commercial,INTEGRATED HEALTH PROJECTS,0080123529,"2,251.98",TO.CE-53.15 - Faulty Emergency Lighting ,HP2 7TR
Department of Health,NHS Business Services Authority,23/07/2021,Professional Fees,Finance & Commercial,INTEGRATED HEALTH PROJECTS,0080123529,"-5,204.08",MISC,HP2 7TR
Department of Health,NHS Business Services Authority,23/07/2021,Professional Fees,Finance & Commercial,INTEGRATED HEALTH PROJECTS,0080123529,"1,059.74",MISC,HP2 7TR
Department of Health,NHS Business Services Authority,23/07/2021,Professional Fees,Finance & Commercial,INTEGRATED HEALTH PROJECTS,0080123529,"5,204.09",MISC,HP2 7TR
Department of Health,NHS Business Services Authority,23/07/2021,Professional Fees,Finance & Commercial,INTEGRATED HEALTH PROJECTS,0080123529,-906.42,MISC,HP2 7TR
Department of Health,NHS Business Services Authority,23/07/2021,Minor Works,Finance & Commercial,INTEGRATED HEALTH PROJECTS,0080123529,236.88,MISC,HP2 7TR
Department of Health,NHS Business Services Authority,23/07/2021,Building Works,Finance & Commercial,INTEGRATED HEALTH PROJECTS,0080123529,"4,074.02",TO-.CE 64.7 -  Stage 2 Refurbishment of ,HP2 7TR
Department of Health,NHS Business Services Authority,23/07/2021,Building Works,Finance & Commercial,INTEGRATED HEALTH PROJECTS,0080123529,"1,613.92",MISC,HP2 7TR
Department of Health,NHS Business Services Authority,23/07/2021,Building Works,Finance & Commercial,INTEGRATED HEALTH PROJECTS,0080123529,228.13,TO.CE-68.1: 1st Floor Redesign - Stage ,HP2 7TR
Department of Health,NHS Business Services Authority,23/07/2021,Building Works,Finance & Commercial,INTEGRATED HEALTH PROJECTS,0080123529,"3,479.34",TO. CE79.1 - Greenfinch Sprinkler Works ,HP2 7TR
Department of Health,NHS Business Services Authority,23/07/2021,Minor Works,Finance & Commercial,INTEGRATED HEALTH PROJECTS,0080123530,"3,517.97",TO. CE 77.02 - Monthly air reassurance ,HP2 7TR
Department of Health,NHS Business Services Authority,23/07/2021,Hard FM Reactive,Finance & Commercial,INTEGRATED HEALTH PROJECTS,0080123530,"2,155.03",TO.CE 74.1 - Bridge House Emergency ,HP2 7TR
Department of Health,NHS Business Services Authority,23/07/2021,Hard FM Reactive,Finance & Commercial,INTEGRATED HEALTH PROJECTS,0080123530,222.31,TO.CE 78.1 -  Fire Stategies for BSA ,HP2 7TR
Department of Health,NHS Business Services Authority,23/07/2021,Hard FM Reactive,Finance & Commercial,INTEGRATED HEALTH PROJECTS,0080123530,62.35,TASK 75,HP2 7TR
Department of Health,NHS Business Services Authority,23/07/2021,Professional Fees,Finance & Commercial,INTEGRATED HEALTH PROJECTS,0080123530,471.43,TASK 81,HP2 7TR
Department of Health,NHS Business Services Authority,23/07/2021,Minor Works,Finance & Commercial,INTEGRATED HEALTH PROJECTS,0080123530,"2,324.05",TO.CE-75.1 - Hesketh House  - Container ,HP2 7TR
Department of Health,NHS Business Services Authority,23/07/2021,Building Works,Finance & Commercial,INTEGRATED HEALTH PROJECTS,0080123530,"3,801.64",TASK 80,HP2 7TR
Department of Health,NHS Business Services Authority,23/07/2021,Building Works,Finance & Commercial,INTEGRATED HEALTH PROJECTS,0080123530,"3,301.92",TASK 82,HP2 7TR
Department of Health,NHS Business Services Authority,23/07/2021,Building Works,Finance & Commercial,INTEGRATED HEALTH PROJECTS,0080123530,"21,046.00",TO. CE79.1 - Greenfinch Sprinkler Works ,HP2 7TR
Department of Health,NHS Business Services Authority,27/07/2021,Minor Works,Finance & Commercial,INTEGRATED HEALTH PROJECTS,0080123569,"2,584.40",TO. CE 77.02 - Monthly air reassurance ,HP2 7TR
Department of Health,NHS Business Services Authority,27/07/2021,Hard FM Reactive,Finance & Commercial,INTEGRATED HEALTH PROJECTS,0080123569,"1,953.78",MISC,HP2 7TR
Department of Health,NHS Business Services Authority,27/07/2021,Hard FM Reactive,Finance & Commercial,INTEGRATED HEALTH PROJECTS,0080123569,"11,139.65",TO.CE 78.1 -  Fire Stategies for BSA ,HP2 7TR
Department of Health,NHS Business Services Authority,27/07/2021,Hard FM Reactive,Finance & Commercial,INTEGRATED HEALTH PROJECTS,0080123569,"7,812.01",TO.CE 74.1 - Bridge House Emergency ,HP2 7TR
Department of Health,NHS Business Services Authority,27/07/2021,Professional Fees,Finance & Commercial,INTEGRATED HEALTH PROJECTS,0080123569,973.58,TO.CE-81.1 Zero Emissions Programme ,HP2 7TR
Department of Health,NHS Business Services Authority,27/07/2021,Building Works,Finance & Commercial,INTEGRATED HEALTH PROJECTS,0080123569,"3,532.94",TO.CE80.4 - 1st floor Reconfiguration ,HP2 7TR
Department of Health,NHS Business Services Authority,27/07/2021,Building Works,Finance & Commercial,INTEGRATED HEALTH PROJECTS,0080123569,639.23,TO.CE-82.1 Greenfinch Gas Removal Stage ,HP2 7TR
Department of Health,NHS Business Services Authority,27/07/2021,Building Works,Finance & Commercial,INTEGRATED HEALTH PROJECTS,0080123569,"13,027.97",TO. CE79.1 - Greenfinch Sprinkler Works ,HP2 7TR
Department of Health,NHS Business Services Authority,23/07/2021,Telephony - Core User Profiles,Technology,KCOM,0080123110,"9,616.20",Video Conferencing Licences,HU1 3RE
Department of Health,NHS Business Services Authority,23/07/2021,Telephony - Core User Profiles,Technology,KCOM,0080123110,"23,845.50",Annual Service Charges Lot 10 Unified ,HU1 3RE
Department of Health,NHS Business Services Authority,23/07/2021,Telephony - CC Inbound,Technology,KCOM,0080123110,"2,795.40",Contact Centre Homeworkers,HU1 3RE
Department of Health,NHS Business Services Authority,23/07/2021,Telephony - CC Inbound,Technology,KCOM,0080123110,"64,386.00",Contact Centre Telephony,HU1 3RE
Department of Health,NHS Business Services Authority,30/07/2021,Telephony - CC Inbound,Technology,KCOM,0080123617,"83,648.70",Contact Centre Telephony,HU1 3RE
Department of Health,NHS Business Services Authority,30/07/2021,Telephony - Core User Profiles,Technology,KCOM,0080123621,"19,232.40",Video Conferencing Licences,HU1 3RE
Department of Health,NHS Business Services Authority,30/07/2021,Telephony - Core User Profiles,Technology,KCOM,0080123621,"47,691.00",Annual Service Charges Lot 10 Unified ,HU1 3RE
Department of Health,NHS Business Services Authority,30/07/2021,Telephony - CC Inbound,Technology,KCOM,0080123621,"5,590.80",Contact Centre Homeworkers,HU1 3RE
Department of Health,NHS Business Services Authority,30/07/2021,Telephony - CC Inbound,Technology,KCOM,0080123621,"45,123.30",Contact Centre Telephony,HU1 3RE
Department of Health,NHS Business Services Authority,02/07/2021,Rates Charges,Finance & Commercial,NEWCASTLE CITY COUNCIL,0050038724,"31,726.00",RATES B/HSE JUL2021,NE99 2PT
Department of Health,NHS Business Services Authority,06/07/2021,Oracle Maintenance,Insight,ORACLE CORPORATION UK LTD,0080122909,"360,000.00",Purchase of Oracle Universal Credits to ,RG6 1RA
Department of Health,NHS Business Services Authority,13/07/2021,Postage Charges,NHS Workforce Services,ROYAL MAIL,0080123080,"2,234.00",A/C 0006456045,S49 1HQ
Department of Health,NHS Business Services Authority,13/07/2021,Postage Charges,NHS Workforce Services,ROYAL MAIL,0080123080,"21,546.66",A/C 0006456045,S49 1HQ
Department of Health,NHS Business Services Authority,13/07/2021,Postage Charges,NHS Workforce Services,ROYAL MAIL,0080123080,16.33,A/C 0006456045,S49 1HQ
Department of Health,NHS Business Services Authority,02/07/2021,Software Licences,Citizen Services,TRUSTMARQUE SOLUTIONS LTD,0080122746,8.40,Part No. PSG-00002,YO41 1LZ
Department of Health,NHS Business Services Authority,02/07/2021,Software Licences,Citizen Services,TRUSTMARQUE SOLUTIONS LTD,0080122746,"2,091.00",Part No. PSM-00002,YO41 1LZ
Department of Health,NHS Business Services Authority,02/07/2021,Software Licences,Citizen Services,TRUSTMARQUE SOLUTIONS LTD,0080122746,"23,410.80",Part No. PRX-00002,YO41 1LZ
Department of Health,NHS Business Services Authority,09/07/2021,Software Licences,Technology,TRUSTMARQUE SOLUTIONS LTD,0080122978,"29,376.00",Microsoft Premier Support Add on ,YO41 1LZ
Department of Health,NHS Business Services Authority,09/07/2021,Software Licences,Digital,TRUSTMARQUE SOLUTIONS LTD,0080122979,"8,506.08",Part No. CSP-COM - CSP Commit - NHSBSA  ,YO41 1LZ
Department of Health,NHS Business Services Authority,09/07/2021,Software Licences,Digital,TRUSTMARQUE SOLUTIONS LTD,0080122979,"8,506.08",Part No. CSP-COM - CSP Commit - NHSBSA  ,YO41 1LZ
Department of Health,NHS Business Services Authority,09/07/2021,Software Licences,Digital,TRUSTMARQUE SOLUTIONS LTD,0080122979,"8,506.08",Part No. CSP-COM - CSP Commit - NHSBSA  ,YO41 1LZ
Department of Health,NHS Business Services Authority,30/07/2021,Software Licences,Technology,TRUSTMARQUE SOLUTIONS LTD,0080123707,"28,524.10",Part No. AAA-30385  -  Windows Server ,YO41 1LZ
Department of Health,NHS Business Services Authority,30/07/2021,Software Licences,Technology,TRUSTMARQUE SOLUTIONS LTD,0080123707,"7,380.19",Part No. AAA-03753  -  SQL Server ,YO41 1LZ
Department of Health,NHS Business Services Authority,16/07/2021,NHS Pension Add Ers Cont,Statutory Payments,NHS PENSIONS ,0080123207,"453,773.80",EMPLOYER CONTRIBUTIONS JUNE 2021,FY7 8LG
Department of Health,NHS Business Services Authority,16/07/2021,NHS Pension Add Ers Cont,Statutory Payments,NHS PENSIONS ,0080123208,"440,000.00",EMPLOYER CONTRIBUTIONS JULY 2021,FY7 8LG
Department of Health,NHS Business Services Authority,09/07/2021,Software Tools Maintenance,Primary Care Services,CIVICA UK LIMITED,0080123005,"28,107.50",Company: Civica UK Limited,DY1 4TD
Department of Health,NHS Business Services Authority,16/07/2021,Apprenticeship Levy,Corp Services & Corp Secretary,HM REVENUE & CUSTOMS 948PX00194660,0050038745,"42,452.00",948PX00194660/JUN2021,NE98 1ZZ
Department of Health,NHS Business Services Authority,16/07/2021,Income Tax,Statutory Payments,HM REVENUE & CUSTOMS 948PX00194660,0050038745,"789,055.48",948PX00194660/JUN2021,NE98 1ZZ
Department of Health,NHS Business Services Authority,16/07/2021,National Insurance,Statutory Payments,HM REVENUE & CUSTOMS 948PX00194660,0050038745,"694,646.89",948PX00194660/JUN2021,NE98 1ZZ
Department of Health,NHS Business Services Authority,16/07/2021,National Insurance,Statutory Payments,HM REVENUE & CUSTOMS 948PX00194660,0050038745,"550,833.61",948PX00194660/JUN2021,NE98 1ZZ
Department of Health,NHS Business Services Authority,16/07/2021,Student Loan,Statutory Payments,HM REVENUE & CUSTOMS 948PX00194660,0050038745,"30,735.00",948PX00194660/JUN2021,NE98 1ZZ
Department of Health,NHS Business Services Authority,16/07/2021,SMP,Statutory Payments,HM REVENUE & CUSTOMS 948PX00194660,0050038745,"-24,756.18",948PX00194660/JUN2021,NE98 1ZZ
Department of Health,NHS Business Services Authority,16/07/2021,SPP,Statutory Payments,HM REVENUE & CUSTOMS 948PX00194660,0050038745,"-1,117.06",948PX00194660/JUN2021,NE98 1ZZ
Department of Health,NHS Business Services Authority,16/07/2021,Professional Fees,NHS Workforce Services,ACUITY BUSINESS SOLUTIONS LTD,0080123260,"57,993.00","Consultancy for Pensions Flexibilities, ",EX2 8LB
Department of Health,NHS Business Services Authority,16/07/2021,Methods Contract,NHS Workforce Services,METHODS BUSINESS & DIGITAL TECH LTD,0080123224,"162,922.00",Methods Business + Digital Tech Ltd,EC1N 8TS
Department of Health,NHS Business Services Authority,16/07/2021,ATOS IT Infrastructure,Technology,ATOS IT SERVICES UK LTD ,0080123276,"31,779.75",Fixed and Variable contract charges for ,WV10 6UH
Department of Health,NHS Business Services Authority,16/07/2021,ATOS IT Infrastructure,Technology,ATOS IT SERVICES UK LTD ,0080123276,"53,001.49",MISC,WV10 6UH
Department of Health,NHS Business Services Authority,16/07/2021,Printing Charges (External),Citizen Services,XEROX UK LIMITED,0080123055,"38,661.00",Non Stationery - Xerox UK Ltd,WF2 0XF
Department of Health,NHS Business Services Authority,16/07/2021,Printing Charges (External),Citizen Services,XEROX UK LIMITED,0080123055,"1,261.79",Non Stationery - Xerox UK Ltd,WF2 0XF
Department of Health,NHS Business Services Authority,16/07/2021,Bank Charges,Citizen Services,ALLPAY LIMITED,0080122990,"36,418.55",PPC1,HR1 3SE
Department of Health,NHS Business Services Authority,23/07/2021,Hard FM Reactive,Finance & Commercial,KIER FACILITIES SERVICES LTD,0080122530,"26,426.77",HFM Reactive P2 PA50 - May 21,RG21 4HG
Department of Health,NHS Business Services Authority,09/07/2021,Hard FM Contract,Finance & Commercial,KIER FACILITIES SERVICES LTD,0080122571,"57,340.88",Kier Contract Extension,RG21 4HG
Department of Health,NHS Business Services Authority,23/07/2021,Hard FM Contract,Finance & Commercial,KIER FACILITIES SERVICES LTD,0080123503,"57,340.88",Kier Contract Extension,RG21 4HG
Department of Health,NHS Business Services Authority,09/07/2021,Medigold Medical Services,NHS Workforce Services,MEDIGOLD HEALTH CONSULTANCY,0080122943,"54,972.84",Provision of medical services for ,NN4 7BF
Department of Health,NHS Business Services Authority,27/07/2021,Medigold Medical Services,NHS Workforce Services,MEDIGOLD HEALTH CONSULTANCY,0080122948,"52,030.61",Medical Services being supplied by ,NN4 7BF
Department of Health,NHS Business Services Authority,09/07/2021,Legal Fees General,NHS Workforce Services,ACCENTURE UK LIMITED,0080122983,"59,327.00",SOW001 � Electronic Staff Record (ESR) ,EC3M 3BD
Department of Health,NHS Business Services Authority,09/07/2021,Claybrook IT App Support,NHS Workforce Services,CLAYBROOK COMPUTING LTD,0080122982,"177,555.92",Monthly standard product support and ,RH10 1UH
Department of Health,NHS Business Services Authority,16/07/2021,Professional Fees,Digital,DIFRENT LTD,0080123324,"82,755.00",NHS Jobs 3 - Beta Phase 5 Team 2 ,E1 6JE
Department of Health,NHS Business Services Authority,02/07/2021,Rent,NHS Workforce Services,CROWN HOSTING DATA CENTRES LTD,0080122892,"31,344.17","SRF001 - Rent, Power Charges & ",SN13 9GB
Department of Health,NHS Business Services Authority,02/07/2021,Electricity,NHS Workforce Services,CROWN HOSTING DATA CENTRES LTD,0080122892,"5,803.16","SRF001 - Rent, Power Charges & ",SN13 9GB
Department of Health,NHS Business Services Authority,27/07/2021,IT Hardware Purchases,NHS Workforce Services,CROWN HOSTING DATA CENTRES LTD,0080123483,"21,895.98",SRF005 - Additional patching cables ,SN13 9GB
Department of Health,NHS Business Services Authority,06/07/2021,Professional Fees,Insight,MASTEK UK LTD,0080122249,"37,425.00",J01015 - SOW023 Data Visualisation,RG1 8BW
Department of Health,NHS Business Services Authority,09/07/2021,Professional Fees,COVID 19,MASTEK UK LTD,0080122251,"33,372.81",SOW006 � COVID-19 Response term of the ,RG1 8BW
Department of Health,NHS Business Services Authority,09/07/2021,External Staff Costs,Digital,MASTEK UK LTD,0080122251,585.94,SOW02 Citizen's Rights Agreement ,RG1 8BW
Department of Health,NHS Business Services Authority,02/07/2021,External Staff Costs,Citizen Services,MASTEK UK LTD,0080122255,"24,922.50",SOW002 Healthy Start Time ,RG1 8BW
Department of Health,NHS Business Services Authority,06/07/2021,Temporary Staff,Primary Care Services,MASTEK UK LTD,0080122391,"36,900.00",Description: NHS Dental Services ,RG1 8BW
Department of Health,NHS Business Services Authority,09/07/2021,Professional Fees,Digital,MASTEK UK LTD,0080122394,"28,600.00",OHS- SOW004 CRA (GHIC & DWP)  ,RG1 8BW
Department of Health,NHS Business Services Authority,09/07/2021,Professional Fees,Digital,MASTEK UK LTD,0080122914,"18,450.00",B98022 Revenue - SOW003 Cost Recovery ,RG1 8BW
Department of Health,NHS Business Services Authority,09/07/2021,External Staff Costs,Digital,MASTEK UK LTD,0080122914,"43,062.50",B99209 Capital - SOW003 Cost Recovery ,RG1 8BW
Department of Health,NHS Business Services Authority,23/07/2021,Professional Fees,COVID 19,MASTEK UK LTD,0080123168,"23,047.44",SOW006 � COVID-19 Response term of the ,RG1 8BW
Department of Health,NHS Business Services Authority,23/07/2021,External Staff Costs,Digital,MASTEK UK LTD,0080123171,"15,300.00",B99209 Capital - SOW001 CCN01 Cost ,RG1 8BW
Department of Health,NHS Business Services Authority,23/07/2021,External Staff Costs,Digital,MASTEK UK LTD,0080123171,"18,100.00",B99209 Capital - SOW001 CCN01 Cost ,RG1 8BW
Department of Health,NHS Business Services Authority,16/07/2021,Other Income,NHS Workforce Services,MASTEK UK LTD,0080123193,"37,980.00",B98034 - SOW025 DHSC Adult Social Care ,RG1 8BW
Department of Health,NHS Business Services Authority,23/07/2021,External Staff Costs,Digital,MASTEK UK LTD,0080123194,"1,050.00",B99209 Capital - SOW001 CCN01 Cost ,RG1 8BW
Department of Health,NHS Business Services Authority,23/07/2021,External Staff Costs,Digital,MASTEK UK LTD,0080123194,"22,950.00",B99209 Capital - SOW001 CCN01 Cost ,RG1 8BW
Department of Health,NHS Business Services Authority,20/07/2021,Other Income,NHS Workforce Services,MASTEK UK LTD,0080123202,"22,150.00",B98034 - SOW025 DHSC Adult Social Care ,RG1 8BW
Department of Health,NHS Business Services Authority,23/07/2021,Professional Fees,Digital,MASTEK UK LTD,0080123206,"10,800.00",B98022 Revenue - SOW003 Cost Recovery ,RG1 8BW
Department of Health,NHS Business Services Authority,23/07/2021,External Staff Costs,Digital,MASTEK UK LTD,0080123206,"12,375.00",B99209 Capital - SOW003 Cost Recovery ,RG1 8BW
Department of Health,NHS Business Services Authority,16/07/2021,Other Income,NHS Workforce Services,MASTEK UK LTD,0080123285,"39,055.00",B98034 - SOW025 DHSC Adult Social Care ,RG1 8BW
Department of Health,NHS Business Services Authority,16/07/2021,Professional Fees,Citizen Services,MASTEK UK LTD,0080123290,"33,090.00",B98033 - SOW005 Immigration Health ,RG1 8BW
Department of Health,NHS Business Services Authority,30/07/2021,External Staff Costs,Citizen Services,MASTEK UK LTD,0080123292,"32,825.00",SOW002 CCN01 Healthy Start - Term: ,RG1 8BW
Department of Health,NHS Business Services Authority,16/07/2021,Professional Fees,Insight,MASTEK UK LTD,0080123295,"27,000.00",J01015 - SOW011 Insight Delivery CCN01,RG1 8BW
Department of Health,NHS Business Services Authority,23/07/2021,Professional Fees,Digital,MASTEK UK LTD,0080123500,"16,250.00",B98022 Revenue - SOW003 Cost Recovery ,RG1 8BW
Department of Health,NHS Business Services Authority,23/07/2021,External Staff Costs,Digital,MASTEK UK LTD,0080123500,"38,950.00",B99209 Capital - SOW003 Cost Recovery ,RG1 8BW
Department of Health,NHS Business Services Authority,30/07/2021,External Staff Costs,Citizen Services,MASTEK UK LTD,0080123512,"30,535.00",SOW002 CCN01 Healthy Start - Term: ,RG1 8BW
Department of Health,NHS Business Services Authority,23/07/2021,Professional Fees,Citizen Services,MASTEK UK LTD,0080123532,"31,230.00",B98033 - SOW005 Immigration Health ,RG1 8BW
Department of Health,NHS Business Services Authority,30/07/2021,External Staff Costs,Digital,MASTEK UK LTD,0080123660,"29,920.00",A99064 SOW012 � Pensions Digitisation. ,RG1 8BW
Department of Health,NHS Business Services Authority,30/07/2021,Other Income,NHS Workforce Services,MASTEK UK LTD,0080123668,"37,500.00",B98034 - SOW025 DHSC Adult Social Care ,RG1 8BW
Department of Health,NHS Business Services Authority,30/07/2021,Other Income,NHS Workforce Services,MASTEK UK LTD,0080123675,"68,040.00",B98034 - SOW025 DHSC Adult Social Care ,RG1 8BW
Department of Health,NHS Business Services Authority,30/07/2021,Professional Fees,Citizen Services,MASTEK UK LTD,0080123677,"22,260.00",SOW038 LIS Case Management Upgrade ,RG1 8BW
Department of Health,NHS Business Services Authority,02/07/2021,Temporary Staff,Citizen Services,ALEXANDER MANN SOLUTIONS,0080122778,"77,348.15",TEMP STAFF,
Department of Health,NHS Business Services Authority,16/07/2021,Temporary Staff,Citizen Services,ALEXANDER MANN SOLUTIONS,0080123160,"42,068.56",TEMP STAFF,
Department of Health,NHS Business Services Authority,23/07/2021,Temporary Staff,Citizen Services,ALEXANDER MANN SOLUTIONS,0080123482,"25,225.38",TEMP STAFF,
Department of Health,NHS Business Services Authority,30/07/2021,Temporary Staff,Citizen Services,ALEXANDER MANN SOLUTIONS,0080123588,"28,715.29",TEMP STAFF,
Department of Health,NHS Business Services Authority,02/07/2021,Cloud Storage,Technology,AGILISYS LIMITED,0080122842,"1,629.90",G10006 - Cloud Brokerage Services ,W12 7RZ
Department of Health,NHS Business Services Authority,02/07/2021,Cloud Storage,Technology,AGILISYS LIMITED,0080122842,"37,485.03",G10014 - Cloud Brokerage Services ,W12 7RZ
Department of Health,NHS Business Services Authority,09/07/2021,Cloud Storage,Digital,AGILISYS LIMITED,0080122843,387.17,A08003 - Cloud Brokerage Services ,W12 7RZ
Department of Health,NHS Business Services Authority,09/07/2021,Cloud Storage,Digital,AGILISYS LIMITED,0080122843,"4,188.18",A98034 - Cloud Brokerage Services ,W12 7RZ
Department of Health,NHS Business Services Authority,09/07/2021,Cloud Storage,Digital,AGILISYS LIMITED,0080122843,"3,679.55",B08010 - Cloud Brokerage Services ,W12 7RZ
Department of Health,NHS Business Services Authority,09/07/2021,Cloud Storage,Digital,AGILISYS LIMITED,0080122843,"7,612.43",B08013 - Cloud Brokerage Services ,W12 7RZ
Department of Health,NHS Business Services Authority,09/07/2021,Cloud Storage,Digital,AGILISYS LIMITED,0080122843,"6,568.40",B08014 - Cloud Brokerage Services ,W12 7RZ
Department of Health,NHS Business Services Authority,09/07/2021,Cloud Storage,Digital,AGILISYS LIMITED,0080122843,"5,012.92",B98021 - Cloud Brokerage Services ,W12 7RZ
Department of Health,NHS Business Services Authority,09/07/2021,Cloud Storage,Digital,AGILISYS LIMITED,0080122843,"3,098.19",B98022 - Cloud Brokerage Services ,W12 7RZ
Department of Health,NHS Business Services Authority,09/07/2021,Cloud Storage,Citizen Services,AGILISYS LIMITED,0080122843,85.99,B98029 - Cloud Brokerage Services ,W12 7RZ
Department of Health,NHS Business Services Authority,09/07/2021,Cloud Storage,Citizen Services,AGILISYS LIMITED,0080122843,"3,024.10",B98031 - Cloud Brokerage Services ,W12 7RZ
Department of Health,NHS Business Services Authority,09/07/2021,Cloud Storage,Citizen Services,AGILISYS LIMITED,0080122843,"1,747.83",B98032 - Cloud Brokerage Services ,W12 7RZ
Department of Health,NHS Business Services Authority,09/07/2021,Cloud Storage,Citizen Services,AGILISYS LIMITED,0080122843,"33,291.71",B98033 - Cloud Brokerage Services ,W12 7RZ
Department of Health,NHS Business Services Authority,09/07/2021,Cloud Storage,Primary Care Services,AGILISYS LIMITED,0080122843,218.36,D03001 - Cloud Brokerage Services ,W12 7RZ
Department of Health,NHS Business Services Authority,09/07/2021,Cloud Storage,Technology,AGILISYS LIMITED,0080122843,385.59,G10019 - Cloud Brokerage Services ,W12 7RZ
Department of Health,NHS Business Services Authority,09/07/2021,Cloud Storage,Citizen Services,AGILISYS LIMITED,0080122843,"1,467.89",P01001- Cloud Brokerage Services ,W12 7RZ
Department of Health,NHS Business Services Authority,02/07/2021,Local Server Rooms - Unix,Technology,AGILISYS LIMITED,0080122848,"75,746.69",NHSBSA LSR  -  Variable Charges,W12 7RZ
Department of Health,NHS Business Services Authority,02/07/2021,NHS Cloud - Wintel,Technology,AGILISYS LIMITED,0080122849,"109,931.42",NHS Cloud  -  Variable Charges,W12 7RZ
Department of Health,NHS Business Services Authority,02/07/2021,Colocate - Unix,Technology,AGILISYS LIMITED,0080122849,"30,697.38",Colocate - Variable Charges,W12 7RZ
Department of Health,NHS Business Services Authority,02/07/2021,Local Server Rooms - Wintel,Technology,AGILISYS LIMITED,0080122849,"29,144.21",CFA LSR  -  Variable Charges,W12 7RZ
Department of Health,NHS Business Services Authority,06/07/2021,Cloud Storage,Technology,AGILISYS LIMITED,0080122911,"31,992.09",AWS MAY 2021,W12 7RZ
Department of Health,NHS Business Services Authority,09/07/2021,Professional Fees,Digital,AGILISYS LIMITED,0080122938,"53,859.54",B08021 - SOW AGI035 RPA Extension,W12 7RZ
Department of Health,NHS Business Services Authority,27/07/2021,Cloud Storage,Digital,AGILISYS LIMITED,0080123562,400.68,A08003 - Cloud Brokerage Services June -,W12 7RZ
Department of Health,NHS Business Services Authority,27/07/2021,Cloud Storage,Digital,AGILISYS LIMITED,0080123562,270.79,A98034 - Cloud Brokerage Services June -,W12 7RZ
Department of Health,NHS Business Services Authority,27/07/2021,Cloud Storage,Digital,AGILISYS LIMITED,0080123562,"7,676.17",B08006 - Cloud Brokerage Services June -,W12 7RZ
Department of Health,NHS Business Services Authority,27/07/2021,Cloud Storage,Digital,AGILISYS LIMITED,0080123562,"3,807.85",B08010 - Cloud Brokerage Services June -,W12 7RZ
Department of Health,NHS Business Services Authority,27/07/2021,Cloud Storage,Digital,AGILISYS LIMITED,0080123562,"8,045.69",B08013 - Cloud Brokerage Services June -,W12 7RZ
Department of Health,NHS Business Services Authority,27/07/2021,Cloud Storage,Digital,AGILISYS LIMITED,0080123562,"5,889.49",B08014 - Cloud Brokerage Services June -,W12 7RZ
Department of Health,NHS Business Services Authority,27/07/2021,Cloud Storage,Digital,AGILISYS LIMITED,0080123562,"8,874.83",B08016 - Cloud Brokerage Services June -,W12 7RZ
Department of Health,NHS Business Services Authority,27/07/2021,Cloud Storage,Citizen Services,AGILISYS LIMITED,0080123562,"1,266.88",B20015 - Cloud Brokerage Services June -,W12 7RZ
Department of Health,NHS Business Services Authority,27/07/2021,Cloud Storage,Digital,AGILISYS LIMITED,0080123562,"17,183.88",B98021 - Cloud Brokerage Services June -,W12 7RZ
Department of Health,NHS Business Services Authority,27/07/2021,Cloud Storage,Digital,AGILISYS LIMITED,0080123562,"6,336.53",B98022 - Cloud Brokerage Services June -,W12 7RZ
Department of Health,NHS Business Services Authority,27/07/2021,Cloud Storage,Citizen Services,AGILISYS LIMITED,0080123562,"3,452.09",B98032 - Cloud Brokerage Services June -,W12 7RZ
Department of Health,NHS Business Services Authority,27/07/2021,Cloud Storage,Citizen Services,AGILISYS LIMITED,0080123562,"2,929.80",B98032 - Cloud Brokerage Services June -,W12 7RZ
Department of Health,NHS Business Services Authority,27/07/2021,Cloud Storage,Citizen Services,AGILISYS LIMITED,0080123562,"1,126.28",B98033 - Cloud Brokerage Services June -,W12 7RZ
Department of Health,NHS Business Services Authority,27/07/2021,Cloud Storage,Primary Care Services,AGILISYS LIMITED,0080123562,549.14,B98036 - Cloud Brokerage Services June -,W12 7RZ
Department of Health,NHS Business Services Authority,27/07/2021,Cloud Storage,Primary Care Services,AGILISYS LIMITED,0080123562,239.43,D03001 - Cloud Brokerage Services June -,W12 7RZ
Department of Health,NHS Business Services Authority,27/07/2021,Cloud Storage,Technology,AGILISYS LIMITED,0080123562,398.36,G10019 - Cloud Brokerage Services June -,W12 7RZ
Department of Health,NHS Business Services Authority,27/07/2021,Cloud Storage,NHS Workforce Services,AGILISYS LIMITED,0080123562,"5,511.47",J01014 - Cloud Brokerage Services June -,W12 7RZ
Department of Health,NHS Business Services Authority,27/07/2021,Cloud Storage,Citizen Services,AGILISYS LIMITED,0080123562,"1,494.67",P01001- Cloud Brokerage Services June - ,W12 7RZ
Department of Health,NHS Business Services Authority,27/07/2021,Cloud Storage,COVID 19,AGILISYS LIMITED,0080123563,"10,966.82",B08019 - Cloud Brokerage Services June -,W12 7RZ
Department of Health,NHS Business Services Authority,27/07/2021,Cloud Storage,Technology,AGILISYS LIMITED,0080123563,"15,579.40",G10028 - Cloud Brokerage Services June -,W12 7RZ
Department of Health,NHS Business Services Authority,27/07/2021,Cloud Storage,COVID 19,AGILISYS LIMITED,0080123563,"1,329.54","M01002	- Cloud Brokerage Services June -",W12 7RZ
Department of Health,NHS Business Services Authority,27/07/2021,Cloud Storage,Technology,AGILISYS LIMITED,0080123564,"1,705.26",G10006 - Cloud Brokerage Services June ,W12 7RZ
Department of Health,NHS Business Services Authority,27/07/2021,Cloud Storage,Technology,AGILISYS LIMITED,0080123564,"37,985.82",G10014 - Cloud Brokerage Services June ,W12 7RZ
Department of Health,NHS Business Services Authority,30/07/2021,NHS Cloud - Wintel,Technology,AGILISYS LIMITED,0080123628,"73,046.44",NHS Cloud  -  Variable Charges,W12 7RZ
Department of Health,NHS Business Services Authority,30/07/2021,NHS Cloud - Wintel,Technology,AGILISYS LIMITED,0080123629,"154,992.46",NHS Cloud  -  Variable Charges,W12 7RZ
Department of Health,NHS Business Services Authority,30/07/2021,Public Key Infrastructure,Technology,AGILISYS LIMITED,0080123629,"11,396.49",MISC,W12 7RZ
Department of Health,NHS Business Services Authority,30/07/2021,Professional Fees,Digital,AGILISYS LIMITED,0080123645,"61,359.18",B08021 - SOW AGI035 RPA Extension,W12 7RZ
Department of Health,NHS Business Services Authority,13/07/2021,External Staff Costs,Technology,VIRGIN MEDIA BUSINESS LTD,0080122770,"107,063.02",VF048 (Implementation of Optional ,BD4 8PW
Department of Health,NHS Business Services Authority,13/07/2021,External Staff Costs,Technology,VIRGIN MEDIA BUSINESS LTD,0080122771,"71,266.41",VF048 (Implementation of Optional ,BD4 8PW
Department of Health,NHS Business Services Authority,20/07/2021,Professional Fees,Technology,VIRGIN MEDIA BUSINESS LTD,0080123352,"40,779.00",VF021 � Azure AWS Upgrade,BD4 8PW
Department of Health,NHS Business Services Authority,30/07/2021,Professional Fees,NHS Workforce Services,VERINT SYSTEMS UK LTD,0080123584,"85,647.37",PO 26955 FORCE COMPLETED,KT13 0RH
Department of Health,NHS Business Services Authority,30/07/2021,Professional Fees,Citizen Services,INDESSER,0080123210,"36,370.94",EHIC RES CHECK,LS1 4AP
Department of Health,NHS Business Services Authority,13/07/2021,External Staff Costs,Primary Care Services,TISSKI LIMITED,0080123113,"29,084.00",SOW25 Provider Assurance � Email & ,CV8 2LG
Department of Health,NHS Business Services Authority,16/07/2021,Rent,Finance & Commercial,GOVERNMENT PROPERTY AGENCY,0080122933,"137,879.50",Rent 01 Jul - 30 Sep 21,B2 5LS
Department of Health,NHS Business Services Authority,01/07/2021,Pensions Division,NHS Workforce Services,,,"1,680,036.35",Payments to Pensioners,
Department of Health,NHS Business Services Authority,01/07/2021,Dental Contractors,Primary Care Services,,,"214,950,045.00",Payments to Dental Contractors,
Department of Health,NHS Business Services Authority,30/07/2021,Pharmacy Contractors,Primary Care Services,,," 723,695,736.25 ",Payments to Pharmacy Contractors,
Department of Health,NHS Business Services Authority,01/07/2021,Pharmacy Contractors,Primary Care Services,,," 658,362,891.17 ",Payments to Pharmacy Contractors,
Department of Health,NHS Business Services Authority,01/07/2021,Pharmacy Contractors,Primary Care Services,,," 148,585,650.33 ",Payments to Pharmacy Contractors,
Department of Health,NHS Business Services Authority,30/07/2021,Pharmacy Contractors,Primary Care Services,,," 10,454,523.33 ",Payments to Pharmacy Contractors,
Department of Health,NHS Business Services Authority,01/07/2021,Pharmacy Contractors,Primary Care Services,,," 7,813,165.47 ",Payments to Pharmacy Contractors,
Department of Health,NHS Business Services Authority,30/07/2021,Pharmacy Contractors,Primary Care Services,,," 6,835,842.30 ",Payments to Pharmacy Contractors,
Department of Health,NHS Business Services Authority,01/07/2021,Pharmacy Contractors,Primary Care Services,,," 6,399,507.08 ",Payments to Pharmacy Contractors,
Department of Health,NHS Business Services Authority,30/07/2021,Pharmacy Contractors,Primary Care Services,,," 4,298,823.59 ",Payments to Pharmacy Contractors,
Department of Health,NHS Business Services Authority,01/07/2021,Pharmacy Contractors,Primary Care Services,,," 2,522,622.10 ",Payments to Pharmacy Contractors,
Department of Health,NHS Business Services Authority,02/07/2021,Pharmacy Contractors,Primary Care Services,,," 827,203.84 ",Payments to Pharmacy Contractors,
Department of Health,NHS Business Services Authority,30/07/2021,Pharmacy Contractors,Primary Care Services,,," 584,856.11 ",Payments to Pharmacy Contractors,
Department of Health,NHS Business Services Authority,06/07/2021,Pharmacy Contractors,Primary Care Services,,," 337,205.86 ",Payments to Pharmacy Contractors,
